bitfinex-derivatives/quotes_BTCF0:USTF0_20210404
["timestamp","ask_amount","ask_price","bid_price","bid_amount"]
[1617529101334,1.10725655,57513.0,57510.0,0.27]
[1617529103236,1.10725655,57513.0,57510.0,0.77625235]
[1617529103637,1.0,57512.0,57510.0,0.77625235]
[1617529103837,1.0,57512.0,57510.0,0.27]
[1617529106042,1.12394,57512.0,57510.0,0.27]
[1617529106241,0.12394,57512.0,57510.0,0.27]
[1617529108444,0.10725655,57513.0,57510.0,0.27]
[1617529113253,0.10725655,57513.0,57512.0,0.44512068]
[1617529113651,0.10725655,57513.0,57512.0,0.71512068]
[1617529114052,0.10725655,57513.0,57512.0,0.27]
[1617529114453,0.10725655,57513.0,57511.0,0.4451221]
[1617529114853,0.10725655,57513.0,57512.0,0.27]
[1617529116261,0.10725655,57513.0,57512.0,0.71512047]
[1617529116657,0.10725655,57513.0,57512.0,0.44512047]
[1617529117059,0.10725655,57513.0,57512.0,0.71512047]
[1617529121763,0.10725655,57513.0,57512.0,1.07952644]
[1617529123870,0.10725655,57513.0,57512.0,0.71512047]
[1617529125171,0.10725655,57513.0,57512.0,0.91512047]
[1617529127777,0.10725655,57513.0,57512.0,1.42121068]
[1617529130682,0.10725655,57513.0,57512.0,1.22121068]
[1617529131283,0.10725655,57513.0,57512.0,1.78968293]
[1617529133282,0.10725655,57513.0,57512.0,1.92638293]
[1617529133682,0.10725655,57522.0,57512.0,4.63768293]
[1617529134284,0.00210525,57529.0,57521.0,0.95417302]
[1617529134683,0.00210525,57529.0,57522.0,0.47]
[1617529134884,0.01012526,57532.0,57522.0,0.47]
[1617529134885,0.00210585,57531.0,57528.0,0.44663131]
[1617529135083,0.00210585,57531.0,57528.0,0.56005131]
[1617529135284,0.00210609,57532.0,57529.0,0.27]
[1617529135684,0.00210609,57532.0,57531.0,0.55388331]
[1617529135984,0.00210609,57532.0,57531.0,0.82388331]
[1617529136587,0.00210647,57533.0,57531.0,0.82388331]
[1617529137488,0.00210647,57533.0,57532.0,0.44662554]
[1617529137686,0.10936302,57533.0,57532.0,0.44662554]
[1617529137887,0.10936302,57533.0,57532.0,0.71662554]
[1617529141390,0.40909607,57533.0,57532.0,0.71662554]
[1617529141794,0.11740104,57533.0,57532.0,0.71662554]
[1617529142792,0.11237844,57533.0,57532.0,0.71662554]
[1617529144093,0.11237844,57533.0,57532.0,1.08236834]
[1617529144897,0.11237844,57533.0,57532.0,1.14351477]
[1617529146198,0.10936452,57533.0,57532.0,1.14351477]
[1617529150003,0.10725655,57533.0,57532.0,1.14351477]
[1617529151206,0.109365,57533.0,57532.0,1.14351477]
[1617529151705,0.10725655,57533.0,57532.0,1.14351477]
[1617529154307,0.10725655,57533.0,57532.0,1.65125171]
[1617529172222,0.0021137,57543.0,57532.0,1.65125171]
[1617529172624,0.00211504,57544.0,57542.0,3.83939742]
[1617529173028,0.00211504,57544.0,57543.0,1.23440481]
[1617529174025,0.10937159,57544.0,57543.0,1.23440481]
[1617529178230,0.10725655,57544.0,57543.0,1.23440481]
[1617529180033,0.11240276,57544.0,57543.0,1.23440481]
[1617529181436,0.11744752,57544.0,57543.0,1.23440481]
[1617529182535,0.41072738,57544.0,57543.0,1.23440481]
[1617529184337,0.11749419,57544.0,57543.0,1.23440481]
[1617529186640,0.10725655,57544.0,57543.0,1.23440481]
[1617529186841,1.10725655,57544.0,57543.0,1.23440481]
[1617529187040,1.41071742,57544.0,57543.0,1.23440481]
[1617529187440,1.11747029,57544.0,57543.0,1.23440481]
[1617529189745,0.11747029,57544.0,57543.0,1.23440481]
[1617529190145,0.11241479,57544.0,57543.0,1.23440481]
[1617529190348,0.11241479,57544.0,57543.0,1.34166136]
[1617529190946,0.1093808,57544.0,57543.0,1.34166136]
[1617529191346,0.11748321,57544.0,57543.0,1.34166136]
[1617529191747,0.11242154,57544.0,57543.0,1.84981943]
[1617529192147,0.10725655,57544.0,57543.0,1.84981943]
[1617529192747,0.11242364,57544.0,57543.0,1.84981943]
[1617529193151,0.00516709,57544.0,57543.0,5.15531943]
[1617529193549,0.00516653,57545.0,57543.0,5.15531943]
[1617529193762,0.00516653,57545.0,57544.0,0.2]
[1617529193950,0.00212807,57545.0,57544.0,1.67402724]
[1617529194149,0.00212807,57545.0,57544.0,5.35362724]
[1617529194351,0.00212901,57546.0,57544.0,5.26192396]
[1617529195151,0.00212922,57547.0,57545.0,1.47399006]
[1617529195553,0.00212922,57547.0,57546.0,0.27]
[1617529195751,0.00212929,57548.0,57546.0,0.27]
[1617529196152,0.00212929,57548.0,57547.0,1.38227927]
[1617529196553,0.00212929,57548.0,57547.0,1.65227927]
[1617529196753,0.00212929,57548.0,57547.0,4.16837927]
[1617529197253,0.00212929,57548.0,57547.0,4.26007992]
[1617529197755,0.00517114,57549.0,57547.0,4.26007992]
[1617529198157,0.00517114,57549.0,57548.0,1.47399052]
[1617529198557,0.01023846,57549.0,57548.0,1.23585378]
[1617529200458,0.01023939,57550.0,57548.0,1.74399062]
[1617529200860,0.30417709,57550.0,57549.0,0.87415323]
[1617529201159,0.01022623,57550.0,57549.0,0.87415323]
[1617529201358,0.01022623,57550.0,57549.0,1.14415323]
[1617529201558,0.30385068,57551.0,57549.0,1.65246967]
[1617529201958,0.30385104,57550.0,57549.0,0.77831644]
[1617529202258,0.30385104,57550.0,57549.0,0.88557299]
[1617529202458,0.10725655,57552.0,57549.0,0.88557299]
[1617529202459,0.30386159,57551.0,57549.0,0.88557299]
[1617529202861,0.01022126,57550.0,57549.0,1.69887641]
[1617529203262,0.01022126,57550.0,57549.0,0.88557299]
[1617529203762,0.01022126,57550.0,57549.0,1.76001122]
[1617529205162,0.01022126,57550.0,57549.0,1.25169478]
[1617529205163,0.00515052,57550.0,57549.0,1.25169478]
[1617529205963,0.00515254,57551.0,57549.0,1.25169478]
[1617529206364,0.01021359,57550.0,57549.0,1.75996369]
[1617529206766,0.010215,57551.0,57550.0,0.95553973]
[1617529207165,0.010215,57551.0,57550.0,1.38153973]
[1617529207364,0.010215,57551.0,57550.0,0.426]
[1617529207666,0.00515874,57551.0,57550.0,1.80856023]
[1617529209868,0.11241417,57552.0,57550.0,1.80856023]
[1617529210369,0.11241417,57552.0,57551.0,1.38253431]
[1617529210770,0.10938068,57552.0,57551.0,4.29983431]
[1617529211168,0.10938068,57552.0,57551.0,4.39152797]
[1617529213069,0.10725655,57552.0,57551.0,4.39152797]
[1617529213272,0.10937973,57552.0,57551.0,4.39152797]
[1617529215073,0.00212318,57552.0,57551.0,4.39152797]
[1617529215475,0.01021187,57555.0,57551.0,4.39152797]
[1617529215476,0.00212504,57555.0,57551.0,4.39152797]
[1617529215877,0.00212551,57556.0,57554.0,1.32133001]
[1617529216376,0.30374554,57560.0,57555.0,0.27]
[1617529216377,0.00212217,57560.0,57555.0,0.27]
[1617529216578,0.00212217,57560.0,57559.0,0.91903522]
[1617529216974,0.00212217,57560.0,57559.0,0.11725655]
[1617529217176,0.00212217,57560.0,57559.0,0.92903263]
[1617529217976,0.00212217,57560.0,57559.0,0.99015774]
[1617529218277,0.00212217,57560.0,57559.0,0.17838166]
[1617529218479,0.00212217,57560.0,57559.0,0.99014998]
[1617529221282,0.00212283,57561.0,57559.0,0.99014998]
[1617529221682,0.00212291,57562.0,57559.0,0.99014998]
[1617529221881,0.00212291,57562.0,57559.0,0.62485424]
[1617529222081,0.00212291,57562.0,57561.0,0.81176904]
[1617529222482,0.00212291,57562.0,57561.0,1.08176904]
[1617529222886,0.00212291,57562.0,57561.0,1.14289391]
[1617529223093,0.00212291,57562.0,57561.0,4.46349391]
[1617529223300,0.00727694,57563.0,57561.0,4.46349391]
[1617529223483,0.00212279,57563.0,57561.0,4.46349391]
[1617529223784,0.00212279,57563.0,57562.0,0.96457974]
[1617529223984,0.00212279,57563.0,57562.0,1.06684974]
[1617529224184,0.00212279,57563.0,57562.0,1.33684974]
[1617529224382,0.00212279,57563.0,57562.0,4.43664974]
[1617529224782,0.00212279,57563.0,57562.0,4.34496275]
[1617529225182,0.00515649,57565.0,57562.0,4.43664726]
[1617529225183,0.00212378,57564.0,57562.0,4.43664726]
[1617529225383,0.00515649,57565.0,57562.0,4.43664726]
[1617529225583,0.00212366,57564.0,57562.0,4.43664726]
[1617529225988,0.00212366,57564.0,57563.0,0.15280767]
[1617529226485,0.00212366,57564.0,57563.0,1.23455669]
[1617529227886,0.00212179,57567.0,57563.0,1.23455669]
[1617529228685,0.00212179,57567.0,57566.0,0.47215581]
[1617529229086,0.05442179,57567.0,57566.0,0.74215581]
[1617529229286,0.05442179,57567.0,57566.0,0.80327758]
[1617529229489,0.00212179,57567.0,57566.0,0.80327758]
[1617529230286,0.00212165,57568.0,57566.0,0.80327758]
[1617529231087,0.00212158,57569.0,57567.0,0.42602107]
[1617529231491,0.00212158,57569.0,57568.0,0.27]
[1617529231887,0.00212158,57569.0,57568.0,0.63489829]
[1617529232388,0.00212158,57569.0,57568.0,0.69601989]
[1617529233788,0.00212202,57570.0,57568.0,0.69601989]
[1617529234190,0.00212202,57570.0,57569.0,0.42602197]
[1617529234590,0.00212202,57570.0,57569.0,0.69602197]
[1617529235994,0.10937907,57572.0,57569.0,1.14197683]
[1617529236492,0.10937907,57572.0,57571.0,0.36487207]
[1617529236695,0.00212252,57572.0,57571.0,0.36487207]
[1617529236893,0.00212252,57572.0,57571.0,0.63487207]
[1617529237293,0.00212252,57572.0,57571.0,0.69598981]
[1617529237694,0.00212063,57573.0,57571.0,0.69598981]
[1617529238293,0.00212063,57573.0,57572.0,0.42569338]
[1617529238594,0.00212063,57573.0,57572.0,0.69569338]
[1617529238794,0.00212063,57573.0,57572.0,0.80294993]
[1617529240995,0.00212063,57573.0,57572.0,0.4383738]
[1617529244906,0.00515011,57574.0,57572.0,0.4383738]
[1617529245405,0.00515011,57574.0,57573.0,0.06111719]
[1617529245805,0.00515011,57574.0,57573.0,0.33111719]
[1617529247608,0.00515011,57574.0,57573.0,0.6957592]
[1617529248405,0.00515388,57575.0,57573.0,0.6957592]
[1617529248805,0.36436637,57577.0,57574.0,0.42624199]
[1617529249205,0.36436637,57577.0,57575.0,0.27]
[1617529249405,0.47169194,57578.0,57576.0,0.365127]
[1617529249807,0.47169194,57578.0,57577.0,0.27]
[1617529250511,0.41101367,57578.0,57577.0,0.69623692]
[1617529250910,0.41101367,57578.0,57577.0,0.42623692]
[1617529251313,0.65546825,57578.0,57577.0,0.63512324]
[1617529251911,0.41101367,57578.0,57577.0,0.69623641]
[1617529253613,0.41101367,57578.0,57577.0,3.74223641]
[1617529253814,0.10725655,57578.0,57577.0,3.74223641]
[1617529254815,0.41112212,57578.0,57577.0,3.74223641]
[1617529255116,0.10725655,57578.0,57577.0,3.74223641]
[1617529255515,0.41110846,57578.0,57577.0,3.74223641]
[1617529256815,0.27094454,57578.0,57577.0,0.69623641]
[1617529257215,0.56462428,57578.0,57577.0,0.69623641]
[1617529257817,0.41116428,57578.0,57577.0,0.69623641]
[1617529259820,0.11748021,57578.0,57577.0,0.69623641]
[1617529262423,0.11241874,57578.0,57577.0,0.69623641]
[1617529263724,0.10938247,57578.0,57577.0,1.14234528]
[1617529264125,0.11241933,57578.0,57577.0,0.69623641]
[1617529264526,0.10938248,57578.0,57577.0,1.14234425]
[1617529264927,0.11241999,57578.0,57577.0,0.69623641]
[1617529265526,0.4115325,57578.0,57577.0,1.14299856]
[1617529270232,0.4642325,57578.0,57577.0,1.14299856]
[1617529271034,0.4115325,57578.0,57577.0,1.14299856]
[1617529272333,0.4115325,57578.0,57577.0,4.36759856]
[1617529272833,0.4115325,57578.0,57577.0,4.45926622]
[1617529275138,0.4115325,57578.0,57577.0,1.23466622]
[1617529275335,0.6234725,57578.0,57577.0,1.23466622]
[1617529275535,0.6234725,57578.0,57577.0,1.14299856]
[1617529276836,0.5718725,57578.0,57577.0,1.14299856]
[1617529277037,0.93775567,57578.0,57577.0,1.14299856]
[1617529277837,0.5718725,57578.0,57577.0,1.14299856]
[1617529278737,0.6231725,57578.0,57577.0,1.14299856]
[1617529278937,0.5718725,57578.0,57577.0,1.14299856]
[1617529279139,0.4115325,57578.0,57577.0,1.14299856]
[1617529280541,1.02185531,57578.0,57577.0,1.14299856]
[1617529280941,0.4115325,57578.0,57577.0,1.14299856]
[1617529281643,0.4630325,57578.0,57577.0,1.14299856]
[1617529281843,0.4115325,57578.0,57577.0,1.14299856]
[1617529282042,0.77740565,57578.0,57577.0,1.27928856]
[1617529282242,0.77740565,57578.0,57577.0,4.38388856]
[1617529282643,0.4115325,57578.0,57577.0,4.38388856]
[1617529283143,0.4115325,57578.0,57577.0,4.47555017]
[1617529284744,0.11751697,57578.0,57577.0,4.47555017]
[1617529285544,0.11751697,57578.0,57577.0,4.98046292]
[1617529285545,0.11243749,57578.0,57577.0,4.98046292]
[1617529287546,0.11752462,57578.0,57577.0,4.98046292]
[1617529289048,0.10725655,57578.0,57577.0,4.98046292]
[1617529289749,0.1124414,57578.0,57577.0,4.98046292]
[1617529294661,0.10939026,57578.0,57577.0,4.98046292]
[1617529297961,0.11243968,57578.0,57577.0,4.98046292]
[1617529298862,0.10939077,57578.0,57577.0,4.98046292]
[1617529299261,0.00213422,57578.0,57577.0,4.98046292]
[1617529299662,0.00213419,57579.0,57577.0,4.98046292]
[1617529299864,0.00213419,57579.0,57578.0,0.10725655]
[1617529300262,0.00518304,57579.0,57578.0,0.37725655]
[1617529300562,0.00518304,57579.0,57578.0,1.84248579]
[1617529301062,0.05658304,57579.0,57578.0,1.84248579]
[1617529301864,0.11243959,57579.0,57578.0,1.84248579]
[1617529302665,0.10725655,57579.0,57578.0,1.84248579]
[1617529303064,0.11243962,57579.0,57578.0,1.84248579]
[1617529303967,0.10725655,57579.0,57578.0,1.84248579]
[1617529304368,0.16209073,57579.0,57578.0,1.84248579]
[1617529304769,0.11752099,57579.0,57578.0,1.84248579]
[1617529305171,0.28417099,57579.0,57578.0,1.84248579]
[1617529308877,0.57908234,57579.0,57578.0,1.84248579]
[1617529310279,0.2841773,57579.0,57578.0,1.84248579]
[1617529310776,0.2790927,57579.0,57578.0,1.84248579]
[1617529311277,0.28417716,57579.0,57578.0,1.84248579]
[1617529315388,0.57907908,57579.0,57578.0,1.84248579]
[1617529318288,0.28417742,57579.0,57578.0,1.84248579]
[1617529318690,0.57908527,57579.0,57578.0,1.84248579]
[1617529319089,0.27390655,57579.0,57578.0,1.84248579]
[1617529319489,0.28417741,57579.0,57578.0,1.84248579]
[1617529319891,0.57914558,57579.0,57578.0,1.84248579]
[1617529322695,0.27390655,57579.0,57578.0,0.37725655]
[1617529323097,0.57914583,57579.0,57578.0,1.68590119]
[1617529324896,0.27390655,57579.0,57578.0,1.68590119]
[1617529325296,0.57915866,57579.0,57578.0,1.68590119]
[1617529332103,0.63115866,57579.0,57578.0,1.68590119]
[1617529332304,0.57915866,57579.0,57578.0,1.68590119]
[1617529338815,0.41250866,57579.0,57578.0,4.95550119]
[1617529339217,0.11244586,57579.0,57578.0,4.95550119]
[1617529339416,0.11244586,57579.0,57578.0,5.04715328]
[1617529341121,0.10725655,57579.0,57578.0,5.04715328]
[1617529342020,0.10939327,57579.0,57578.0,5.04715328]
[1617529342520,0.10725655,57579.0,57578.0,5.04715328]
[1617529342921,0.10725655,57579.0,57578.0,5.60951341]
[1617529342922,0.1093943,57579.0,57578.0,5.60951341]
[1617529344822,0.10725655,57579.0,57578.0,5.04715328]
[1617529345522,0.00519169,57580.0,57578.0,5.04715328]
[1617529346124,0.00519169,57580.0,57579.0,1.45814153]
[1617529346527,0.00519169,57580.0,57579.0,1.72814153]
[1617529347726,0.00213623,57580.0,57579.0,1.72814153]
[1617529349929,0.00213623,57580.0,57579.0,1.6364921]
[1617529350129,0.00213623,57580.0,57579.0,4.4958921]
[1617529350331,0.00213623,57580.0,57579.0,4.58754244]
[1617529357941,0.00213596,57581.0,57579.0,4.58754244]
[1617529358843,0.00213596,57581.0,57580.0,1.45581714]
[1617529359245,0.00213596,57581.0,57580.0,1.72581714]
[1617529359744,0.00518646,57581.0,57580.0,1.72581714]
[1617529360144,0.01027137,57581.0,57580.0,1.63416731]
[1617529360344,0.11752792,57581.0,57580.0,1.63416731]
[1617529362148,0.11244296,57581.0,57580.0,1.63416731]
[1617529365049,0.11244296,57581.0,57580.0,4.50836731]
[1617529365452,0.11752796,57581.0,57580.0,4.6000201]
[1617529365851,0.11244304,57581.0,57580.0,4.6000201]
[1617529369357,0.10939218,57581.0,57580.0,4.6000201]
[1617529372762,0.10725655,57581.0,57580.0,4.6000201]
[1617529377770,0.16005655,57581.0,57580.0,4.6000201]
[1617529378270,0.10725655,57581.0,57580.0,4.6000201]
[1617529381076,0.10725655,57581.0,57580.0,1.7258201]
[1617529381477,0.10725655,57581.0,57580.0,1.63416731]
[1617529386985,0.10725655,57581.0,57580.0,2.63416731]
[1617529387185,0.10725655,57581.0,57580.0,1.63416731]
[1617529387387,0.10725655,57581.0,57580.0,2.63416731]
[1617529387786,0.10725655,57581.0,57580.0,1.63416731]
[1617529388187,0.1070075,57581.0,57580.0,1.63416731]
[1617529388386,0.1070075,57581.0,57580.0,2.63416731]
[1617529392593,0.00213542,57584.0,57580.0,1.63416731]
[1617529392992,0.00213542,57584.0,57583.0,3.339]
[1617529393392,0.00213542,57584.0,57583.0,3.609]
[1617529393593,0.00213542,57584.0,57583.0,5.06417359]
[1617529395393,0.00213542,57584.0,57583.0,1.72517359]
[1617529395794,2.5633,57584.0,57583.0,1.72517359]
[1617529396193,2.5633,57584.0,57583.0,1.63352633]
[1617529396594,2.5684891,57584.0,57583.0,1.63352633]
[1617529396796,0.0051891,57584.0,57583.0,1.63352633]
[1617529396997,0.0051891,57584.0,57583.0,5.38032633]
[1617529397396,0.01027645,57584.0,57583.0,5.38032633]
[1617529397699,0.01027645,57584.0,57583.0,5.47197525]
[1617529401304,0.30534325,57585.0,57583.0,5.47197525]
[1617529401804,0.01027664,57584.0,57583.0,4.0168]
[1617529402104,0.01027664,57584.0,57583.0,5.31957128]
[1617529402605,3.25638664,57584.0,57583.0,1.57277128]
[1617529403010,3.91787907,57584.0,57583.0,1.57277128]
[1617529405210,3.55146883,57584.0,57583.0,1.57277128]
[1617529405911,3.55146883,57584.0,57583.0,1.0717054]
[1617529405912,3.91788896,57584.0,57583.0,1.0717054]
[1617529408319,4.36544677,57584.0,57583.0,0.63076743]
[1617529408717,3.91788896,57584.0,57583.0,0.63076743]
[1617529408916,3.91788896,57584.0,57583.0,1.07216549]
[1617529409717,4.91788896,57584.0,57583.0,1.07216549]
[1617529410117,5.36543925,57584.0,57583.0,0.63076743]
[1617529410519,4.91788896,57584.0,57583.0,1.07190729]
[1617529410922,5.36543897,57584.0,57583.0,1.07190729]
[1617529411630,5.36543897,57584.0,57583.0,0.63076743]
[1617529413121,2.25443897,57584.0,57583.0,0.63076743]
[1617529413321,2.25443897,57584.0,57583.0,3.36156743]
[1617529413524,1.80688896,57584.0,57583.0,3.80262202]
[1617529413923,1.80688896,57584.0,57583.0,3.89427861]
[1617529414525,0.80688896,57584.0,57583.0,3.89427861]
[1617529415228,0.80688896,57584.0,57583.0,1.16347861]
[1617529416030,0.80688896,57584.0,57583.0,1.07182202]
[1617529416228,3.43088896,57584.0,57583.0,1.07182202]
[1617529416629,0.80688896,57584.0,57583.0,1.07182202]
[1617529416829,0.67177896,57584.0,57583.0,3.94345655]
[1617529417030,0.67177896,57584.0,57583.0,4.30430575]
[1617529417430,0.30535883,57584.0,57583.0,4.89658983]
[1617529417631,0.01027131,57585.0,57583.0,4.89658983]
[1617529418130,0.01027131,57585.0,57584.0,1.45397053]
[1617529418536,0.01026967,57586.0,57584.0,1.72397053]
[1617529418930,0.01026967,57586.0,57585.0,1.30087061]
[1617529419330,0.01026967,57586.0,57585.0,1.72360794]
[1617529420131,0.01026967,57586.0,57585.0,1.63196554]
[1617529420531,0.00518549,57587.0,57585.0,1.63196554]
[1617529420932,0.00518547,57586.0,57585.0,1.63196554]
[1617529421832,0.00213517,57586.0,57585.0,1.63196554]
[1617529422032,0.00213517,57586.0,57585.0,4.66066554]
[1617529422733,0.00213517,57586.0,57585.0,4.75230466]
[1617529428139,0.00518536,57588.0,57585.0,4.75230466]
[1617529428140,0.00213469,57587.0,57585.0,4.75230466]
[1617529428740,0.00213469,57587.0,57586.0,1.45268834]
[1617529429042,0.00213469,57587.0,57586.0,1.59523687]
[1617529429240,0.00213469,57587.0,57586.0,1.86523687]
[1617529429641,0.00213469,57587.0,57586.0,1.72268834]
[1617529430744,0.00213432,57588.0,57586.0,1.72268834]
[1617529431245,0.00518339,57589.0,57587.0,1.36066606]
[1617529431645,0.00518339,57589.0,57588.0,1.56958112]
[1617529432347,0.00518339,57589.0,57588.0,1.63067333]
[1617529433147,0.01026515,57590.0,57588.0,1.74848333]
[1617529433348,0.00518338,57589.0,57588.0,1.74848333]
[1617529433749,0.00518338,57589.0,57588.0,0.38781]
[1617529434150,0.00518338,57589.0,57588.0,1.78026677]
[1617529434650,0.00518338,57589.0,57588.0,1.6886285]
[1617529436155,0.01026506,57589.0,57588.0,1.68792712]
[1617529438154,0.01026506,57589.0,57588.0,1.73972712]
[1617529438756,0.00518334,57589.0,57588.0,1.73972712]
[1617529439356,0.00518334,57589.0,57588.0,1.68792712]
[1617529440258,0.0021336,57589.0,57588.0,1.68792712]
[1617529440459,0.0021336,57589.0,57588.0,1.73982712]
[1617529441759,0.0021336,57589.0,57588.0,1.68792712]
[1617529442658,0.0021336,57589.0,57588.0,1.73972712]
[1617529443260,0.0021336,57589.0,57588.0,1.68792712]
[1617529444665,0.0021336,57590.0,57588.0,1.68792712]
[1617529444862,0.0021336,57590.0,57589.0,0.10725655]
[1617529445061,0.0021336,57590.0,57589.0,1.47021389]
[1617529445261,0.0021336,57590.0,57589.0,1.74021389]
[1617529446262,0.0051816,57591.0,57589.0,1.74021389]
[1617529446462,0.00213345,57590.0,57589.0,1.74021389]
[1617529448666,0.00213345,57590.0,57589.0,0.37725655]
[1617529449067,0.00213345,57590.0,57589.0,1.67929411]
[1617529449666,0.00213345,57590.0,57589.0,5.37589411]
[1617529450270,0.00213345,57590.0,57589.0,5.46753074]
[1617529452069,0.00213345,57591.0,57589.0,5.46753074]
[1617529452571,0.00213345,57591.0,57590.0,1.45476438]
[1617529452971,0.00213345,57591.0,57590.0,1.72476438]
[1617529455674,0.00213345,57591.0,57590.0,1.63312803]
[1617529455873,0.00213345,57591.0,57590.0,4.23562803]
[1617529456475,0.00213345,57591.0,57590.0,4.32726266]
[1617529456874,0.00213284,57592.0,57590.0,4.32726266]
[1617529457475,0.00213284,57592.0,57591.0,1.4542454]
[1617529457777,0.00213284,57592.0,57591.0,1.7242454]
[1617529459877,0.00213284,57592.0,57591.0,5.8342454]
[1617529460280,0.11751457,57594.0,57591.0,5.8342454]
[1617529460281,0.10725655,57594.0,57591.0,5.74261082]
[1617529460677,0.10938935,57594.0,57593.0,1.0]
[1617529461077,0.10938935,57594.0,57593.0,1.5709807]
[1617529461480,0.10938935,57594.0,57593.0,1.63206932]
[1617529461680,0.10938935,57594.0,57593.0,2.63206932]
[1617529462481,0.10725655,57594.0,57593.0,2.63206932]
[1617529463581,0.10725655,57594.0,57593.0,1.63206932]
[1617529463781,0.10725655,57594.0,57593.0,2.63206932]
[1617529466484,0.11244023,57594.0,57593.0,2.63206932]
[1617529466683,0.11244023,57594.0,57593.0,1.63206932]
[1617529466885,0.10939023,57594.0,57593.0,1.63206932]
[1617529467886,0.10939023,57594.0,57593.0,5.18706932]
[1617529468084,0.10939023,57594.0,57593.0,6.18706932]
[1617529468284,0.10939023,57594.0,57593.0,5.18706932]
[1617529468484,0.10939023,57594.0,57593.0,5.27869964]
[1617529468885,0.16209023,57594.0,57593.0,5.27869964]
[1617529469085,0.10939023,57594.0,57593.0,6.27869964]
[1617529469485,0.10939023,57594.0,57593.0,5.27869964]
[1617529469786,0.10725655,57594.0,57593.0,5.27869964]
[1617529471188,0.10725655,57594.0,57593.0,1.72369964]
[1617529471788,0.10725655,57594.0,57593.0,1.63206932]
[1617529472588,0.00213368,57595.0,57593.0,2.63206932]
[1617529472789,0.00213368,57595.0,57594.0,3.3575]
[1617529472989,0.00213368,57595.0,57594.0,5.71928566]
[1617529473192,0.00213368,57595.0,57594.0,5.98928566]
[1617529473391,0.00213368,57595.0,57594.0,6.08091383]
[1617529474493,0.00213362,57596.0,57594.0,6.08091383]
[1617529474893,0.00213362,57596.0,57595.0,2.4532506]
[1617529475093,0.00213362,57596.0,57595.0,2.56050715]
[1617529475293,0.00213362,57596.0,57595.0,2.83050715]
[1617529475493,0.00213362,57596.0,57595.0,1.83050715]
[1617529477900,0.00518336,57596.0,57595.0,1.83050715]
[1617529478700,0.00518331,57597.0,57595.0,1.83050715]
[1617529478900,0.00518331,57597.0,57595.0,2.83050715]
[1617529479100,0.00518331,57597.0,57596.0,2.36067617]
[1617529479501,0.00518331,57597.0,57596.0,2.63067617]
[1617529480003,0.01026527,57597.0,57596.0,2.63067617]
[1617529480302,0.01026527,57597.0,57596.0,1.63067617]
[1617529480701,0.01026527,57597.0,57596.0,2.63067617]
[1617529480903,0.01026527,57597.0,57596.0,1.63067617]
[1617529485909,0.01026532,57598.0,57596.0,1.63067617]
[1617529486708,0.01026532,57598.0,57597.0,1.35947481]
[1617529487109,0.01026532,57598.0,57597.0,1.62947481]
[1617529488809,0.00518295,57598.0,57597.0,1.62947481]
[1617529490912,0.00518295,57598.0,57597.0,4.72157481]
[1617529491514,0.00518295,57598.0,57597.0,5.81320213]
[1617529491914,0.0021341,57599.0,57597.0,5.95573018]
[1617529492315,0.0021341,57600.0,57598.0,2.58820183]
[1617529492716,0.0021341,57600.0,57599.0,2.62344189]
[1617529493518,0.00213395,57601.0,57599.0,2.62344189]
[1617529493919,0.00213395,57601.0,57599.0,1.62344189]
[1617529494120,0.00213395,57603.0,57600.0,1.51781529]
[1617529494320,0.00213395,57603.0,57600.0,2.51781529]
[1617529494521,0.00213395,57604.0,57602.0,1.2917421]
[1617529494921,0.00213395,57604.0,57603.0,0.27]
[1617529495121,0.00518244,57605.0,57603.0,0.27]
[1617529495122,0.00213395,57605.0,57603.0,2.66878172]
[1617529495524,0.00213395,57605.0,57604.0,2.35218373]
[1617529495923,0.00213395,57605.0,57604.0,2.62218373]
[1617529496524,0.00213393,57606.0,57604.0,2.62218373]
[1617529496925,0.00213393,57606.0,57605.0,1.35208481]
[1617529497326,0.00213393,57606.0,57605.0,2.62208481]
[1617529498526,0.00213393,57606.0,57605.0,1.62208481]
[1617529498727,0.00213393,57606.0,57605.0,2.62208481]
[1617529499327,0.00213386,57607.0,57605.0,2.62208481]
[1617529499526,0.00213386,57607.0,57605.0,1.62208481]
[1617529499728,0.00213386,57608.0,57606.0,1.35142081]
[1617529499932,0.00213386,57608.0,57607.0,3.2623]
[1617529500128,0.00213056,57615.0,57607.0,4.5323]
[1617529500527,0.00213056,57615.0,57608.0,1.0]
[1617529500728,0.00213048,57618.0,57614.0,0.79196867]
[1617529500926,0.00213048,57618.0,57614.0,1.91087867]
[1617529501128,0.00213046,57619.0,57615.0,1.80205824]
[1617529501328,0.00213046,57619.0,57615.0,1.90931479]
[1617529501529,0.00213046,57619.0,57615.0,1.97038779]
[1617529503230,0.00213044,57620.0,57615.0,1.97038779]
[1617529503632,0.00213044,57620.0,57615.0,2.46528412]
[1617529504132,0.00213042,57621.0,57615.0,2.46528412]
[1617529505531,0.00213042,57621.0,57620.0,2.5288]
[1617529505932,0.00213042,57621.0,57620.0,2.7988]
[1617529506134,0.00213042,57621.0,57620.0,3.74378104]
[1617529506135,0.00517403,57621.0,57620.0,3.74378104]
[1617529506334,0.00517403,57621.0,57620.0,4.74378104]
[1617529506534,0.00517403,57621.0,57620.0,1.21498104]
[1617529506934,0.00517403,57621.0,57620.0,1.12337417]
[1617529507336,0.00517403,57621.0,57620.0,1.21497931]
[1617529508237,0.00213032,57621.0,57620.0,1.21497931]
[1617529508739,0.00213029,57623.0,57620.0,1.21497931]
[1617529509138,0.00213029,57623.0,57622.0,0.79311995]
[1617529509342,0.00213029,57623.0,57622.0,0.9003765]
[1617529509538,0.00213029,57623.0,57622.0,1.23144177]
[1617529510941,0.00517357,57624.0,57622.0,1.23144177]
[1617529511341,0.3044305,57624.0,57623.0,0.4180373]
[1617529511742,0.3044305,57624.0,57623.0,0.6880373]
[1617529511943,0.3044305,57624.0,57623.0,0.27]
[1617529512140,0.5044305,57624.0,57623.0,0.27]
[1617529512341,3.3781,57622.0,57620.0,0.01]
[1617529512742,3.3781,57622.0,57618.0,0.35665396]
[1617529512942,3.3781,57622.0,57621.0,0.27]
[1617529513142,3.68197127,57622.0,57621.0,0.27]
[1617529513343,3.98922782,57622.0,57617.0,0.35678836]
[1617529513545,3.98922782,57622.0,57620.0,0.27]
[1617529513743,3.98922782,57622.0,57618.0,0.27]
[1617529513944,0.2102269,57620.0,57616.0,0.35669548]
[1617529514143,0.2102269,57620.0,57617.0,0.27]
[1617529514545,1.0,57618.0,57617.0,0.27]
[1617529514745,1.00516414,57618.0,57617.0,0.27]
[1617529515144,1.21022714,57618.0,57614.0,0.35673257]
[1617529515343,0.10725655,57615.0,57614.0,0.35673257]
[1617529515545,0.30725655,57615.0,57614.0,0.35673257]
[1617529515746,0.30725655,57615.0,57613.0,0.35689731]
[1617529515747,1.3124213,57615.0,57613.0,0.35689731]
[1617529516143,1.3124213,57615.0,57613.0,0.62689731]
[1617529516344,1.0,57614.0,57613.0,0.33107328]
[1617529516543,2.5,57614.0,57613.0,0.06107328]
[1617529516746,2.5021268,57614.0,57613.0,0.06107328]